fUSD/lending_fUSD_20250602
["ID","MTS","AMOUNT","RATE_DAILY","PERIOD"]
[363853450,1748899840990,-300.45,0.00024,2]
[363853452,1748899841003,-303.78,0.00024,2]
[363853454,1748899841014,-301.66,0.00024,2]
[363853456,1748899841023,-304.39,0.00024,2]
[363853458,1748899841032,-304.1,0.00024,2]
[363853460,1748899841042,-304.18,0.00024,2]
[363853462,1748899841051,-301.32,0.00024,2]
[363853464,1748899841060,-300.24,0.00024,2]
[363853466,1748899841069,-301.3,0.00024,2]
[363853468,1748899841079,-301.6,0.00024,2]
[363853470,1748899841088,-300.51,0.00024,2]
[363853472,1748899841097,-301.67,0.00024,2]
[363853474,1748899841107,-305.28,0.00024,2]
[363853476,1748899841117,-304.16,0.00024,2]
[363853478,1748899841127,-304.2,0.00024,2]
[363853480,1748899841138,-300.74,0.00024,2]
[363853482,1748899841149,-301.36,0.00024,2]
[363853484,1748899841158,-303.81,0.00024,2]
[363853486,1748899841168,-303.02,0.00024,2]
[363853488,1748899841177,-303.96,0.00024,2]
[363853490,1748899841186,-301.35,0.00024,2]
[363853492,1748899841195,-301.13,0.00024,2]
[363853494,1748899841204,-989.48364291,0.00024,2]
[363853496,1748899841214,-26343.12758675,0.00024,5]
[363853498,1748899841223,-3214.90552484,0.00024,2]
[363853500,1748899841232,-4000.0,0.00024,4]
[363853502,1748899841241,-381.50292471,0.000241,2]
[363853504,1748899841251,-500.0,0.00024289,2]
[363853506,1748899841261,-823.0,0.00024629,2]
[363853508,1748899841271,-4001.04367643,0.00024659,11]
[363853510,1748899841280,-500.0,0.00024773,2]
[363853512,1748899841289,-500.0,0.00024773,2]
[363853514,1748899841299,-500.0,0.00024773,2]
[363853516,1748899841309,-500.0,0.00024773,2]
[363853518,1748899841318,-500.0,0.00024773,2]
[363853520,1748899841328,-500.0,0.00024773,2]
[363853522,1748899841338,-623531.410973,0.000248,3]
[363853524,1748899841347,-500.0,0.00024814,2]
[363853526,1748899841357,-186416.77807533,0.000249,3]
[363853528,1748899841370,-65002.66771018,0.000249,3]
[363853531,1748899841393,-425.6496,0.000249,3]
[363853533,1748899841405,-866.38249894,0.000249,3]
[363853538,1748899841444,-232822.49642933,0.000249,3]
[363853541,1748899841455,-2998.85390953,0.000249,3]
[363853543,1748899841467,-4045.25097127,0.000249,3]
[363853545,1748899841479,-547.0,0.000249,3]
[363853547,1748899841490,-4186.02301595,0.000249,3]
[363853573,1748899841733,-0.00393996,0.000249,3]
[363853576,1748899841744,-630.11771902,0.000249,3]
[363853578,1748899841755,-2453.9772201,0.000249,3]
[363853580,1748899841767,-709.26036452,0.000249,3]
[363853582,1748899841778,-1352.25,0.000249,3]
[363853584,1748899841789,-500.0,0.000249,3]
[363853588,1748899841816,-7715.92606364,0.000249,3]
[363853590,1748899841828,-1729.85740307,0.000249,3]
[363853593,1748899841847,-650.0,0.000249,3]
[363853595,1748899841858,-7519.62726364,0.000249,3]
[363853659,1748899842444,-341.23983093,0.000249,3]
[363853661,1748899842456,-9617.47559765,0.000249,3]
[363853662,1748899842467,-83095.89181994,0.000249,3]
[363853663,1748899842477,-500.0,0.00024918,2]
[363853664,1748899842487,-4000.0,0.00025,4]
[363853665,1748899842496,-150.0,0.00025258,2]
[363853666,1748899842505,-150.0,0.00025258,2]
[363853667,1748899842515,-150.0,0.00025258,2]
[363853668,1748899842526,-150.0,0.00025258,2]
[363853669,1748899842535,-150.0,0.00025258,2]
[363853670,1748899842545,-150.0,0.00025258,2]
[363853671,1748899842554,-150.0,0.00025258,2]
[363853672,1748899842564,-150.0,0.00025258,2]
[363853674,1748899842573,-150.0,0.00025258,2]
[363853675,1748899842582,-221.542,0.00025258,2]
[363853677,1748899842591,-280.0,0.000253,10]
[363853679,1748899842600,-1000.0,0.00025321,2]
[363853681,1748899842609,-4001.04367643,0.00025452,13]
[363853683,1748899842619,-1253.0,0.0002573,2]
[363853685,1748899842629,-155.0,0.0002573,2]
[363853687,1748899842638,-849.0,0.0002573,2]
[363853689,1748899842648,-4070.0,0.0002573,2]
[363853691,1748899842657,-1500.0,0.00025868,2]
[363853693,1748899842667,-4000.0,0.00026,4]
[363853695,1748899842676,-4001.04367643,0.00026245,14]
[363853697,1748899842685,-437.0,0.000263,2]
[363853699,1748899842695,-150.36902539,0.0002661,2]
[363853701,1748899842704,-1112.0,0.00026845,2]
[363853703,1748899842714,-164.94730733,0.00026951,2]
[363853704,1748899842723,-459.54,0.00026996,2]
[363853705,1748899842732,-1654.12927155,0.00027,120]
[363853706,1748899842743,-4000.0,0.00027,4]
[363853707,1748899842753,-4001.04367643,0.00027038,16]
[363853708,1748899842762,-152.92,0.000272,31]
[363853709,1748899842772,-152.92,0.000272,31]
[363853710,1748899842781,-152.92,0.000272,31]
[363853711,1748899842790,-152.92,0.000272,31]
[363853712,1748899842799,-152.92,0.000272,31]
[363853713,1748899842808,-152.92,0.000272,31]
[363853714,1748899842817,-302.08,0.00027223,2]
[363853715,1748899842826,-305.03,0.00027223,2]
[363853716,1748899842835,-878.26,0.00027252,2]
[363853717,1748899842844,-400.0,0.000273,2]
[363853718,1748899842853,-4005.60530507,0.0002739,2]
[363853720,1748899842863,-4905.64957983,0.0002739,10]
[363853722,1748899842876,-517.7123024,0.0002739,10]
[363853723,1748899842885,-3474.79068149,0.0002739,2]
[363853724,1748899842894,-1328.11701611,0.0002739,120]
[363853725,1748899842905,-1720.57611592,0.0002739,120]
[363853726,1748899842915,-501.99737888,0.0002739,28]
[363853727,1748899842924,-4229.48565558,0.0002739,7]
[363853728,1748899842933,-214.0034707,0.0002739,2]
[363853729,1748899842942,-500.0,0.00027612,2]
[363853730,1748899842952,-5862.65,0.0002766,2]
[363853731,1748899842962,-4001.04367643,0.00027831,17]
[363853732,1748899842971,-303.57,0.00027868,2]
[363853733,1748899842981,-302.13,0.00027868,2]
[363853734,1748899842990,-83927.65,0.000279,7]
[363853735,1748899843004,-2588.40524809,0.00028,60]
[363853736,1748899843014,-4000.0,0.00028,4]
[363853737,1748899843024,-302.92,0.00028058,2]
[363853738,1748899843035,-301.12,0.00028059,2]
[363853739,1748899843044,-306.85777028,0.00028104,2]
[363853740,1748899843053,-302.84,0.00028288,2]
[363853741,1748899843063,-4001.04367643,0.00028624,19]
[363853742,1748899843072,-947.12,0.00028629,30]
[363853743,1748899843082,-3281.71,0.00028636,2]
[363853744,1748899843091,-335.03,0.00028703,2]
[363853745,1748899843101,-1253.0,0.0002873,2]
[363853746,1748899843111,-500.0,0.00028782,2]
[363853747,1748899843120,-201.0,0.0002879,2]
[363853748,1748899843129,-1000.0,0.000288,2]
[363853749,1748899843139,-152.92,0.000288,31]
[363853750,1748899843149,-152.92,0.000288,31]
[363853752,1748899843158,-152.92,0.000288,31]
[363853754,1748899843168,-152.92,0.000288,31]
[363853756,1748899843177,-152.92,0.000288,31]
[363853758,1748899843187,-152.92,0.000288,31]
[363853760,1748899843196,-152.92,0.000288,31]
[363853762,1748899843207,-152.92,0.000288,31]
[363853764,1748899843215,-152.92,0.000288,31]
[363853766,1748899843225,-152.92,0.000288,31]
[363853768,1748899843234,-152.92,0.000288,31]
[363853769,1748899843242,-152.92,0.000288,31]
[363853772,1748899843252,-500.0,0.00028803,2]
[363853773,1748899843261,-150.0,0.00028873,2]
[363853775,1748899843271,-151.0,0.00028991,7]
[363853777,1748899843281,-151.0,0.00028991,7]
[363853780,1748899843290,-209.0,0.00029,2]
[363853781,1748899843300,-3201.91605802,0.00029,2]
[363853783,1748899843310,-164.62,0.00029,2]
[363853785,1748899843320,-200.0,0.00029,2]
[363853787,1748899843329,-4000.0,0.00029,4]
[363853789,1748899843339,-459.54,0.00029259,2]
[363853791,1748899843350,-201.0,0.0002937,2]
[363853793,1748899843361,-500.0,0.000294,5]
[363853796,1748899843370,-3861.63019121,0.00029417,21]
[363853798,1748899843383,-139.41348522,0.00029417,21]
[363853800,1748899843393,-453.47,0.00029556,2]
[363853801,1748899843403,-1042.85,0.00029595,2]
[363853825,1748899843610,-150.0,0.00029644,2]
[363853827,1748899843623,-151.0,0.00029704,7]
[363853829,1748899843632,-160.98,0.00029799,2]
[363853831,1748899843644,-14111.48240748,0.000298,7]
[363853833,1748899843656,-268.9,0.000298,7]
[363853836,1748899843675,-419.3400005,0.000298,7]
[363853839,1748899843694,-69127.92759202,0.000298,7]
[363853841,1748899843704,-1444.7383,0.00029809,2]
[363853843,1748899843713,-1000.0,0.00029827,2]
[363853845,1748899843722,-300.27,0.00029905,2]
[363853847,1748899843731,-321.28315356,0.00029908,10]
[363853848,1748899843740,-1500.0,0.00029909,120]
[363853850,1748899843749,-59290.0,0.00029909,2]
[363853852,1748899843759,-150.36902539,0.00029933,2]
[363853854,1748899843768,-201.0,0.0002995,2]
[363853856,1748899843777,-500.0,0.0002995,2]
[363853859,1748899843787,-1260.65,0.00029976,2]
[363853861,1748899843796,-301.1,0.0002999,2]
[363853863,1748899843806,-600.0,0.00030137,2]
[363853865,1748899843815,-4001.04367643,0.0003021,22]
[363853866,1748899843824,-300.0,0.00030214,2]
[363853868,1748899843834,-6527.39,0.00030257,2]
[363853870,1748899843844,-500.0,0.00030266,7]
[363853872,1748899843853,-152.92,0.000304,31]
[363853874,1748899843863,-152.92,0.000304,31]
[363853876,1748899843872,-152.92,0.000304,31]
[363853878,1748899843882,-152.92,0.000304,31]
[363853880,1748899843891,-152.92,0.000304,31]
[363853882,1748899843900,-152.92,0.000304,31]
[363853884,1748899843909,-152.92,0.000304,31]
[363853886,1748899843919,-152.92,0.000304,31]
[363853888,1748899843928,-152.92,0.000304,31]
[363853890,1748899843937,-152.92,0.000304,31]
[363853892,1748899843947,-152.92,0.000304,31]
[363853894,1748899843956,-152.92,0.000304,31]
[363853896,1748899843965,-150.0,0.00030415,2]
[363853898,1748899843975,-625.55712192,0.000308,2]
[363853900,1748899843984,-163.04,0.00030805,2]
[363853902,1748899843993,-890.66,0.00030839,2]
[363853904,1748899844008,-300.0,0.00031,2]
[363853906,1748899844017,-4001.04367643,0.00031003,24]
[363853908,1748899844026,-23900.0,0.00031014,2]
[363853910,1748899844035,-150.0,0.00031186,2]
[363853912,1748899844047,-459.54,0.00031523,2]
[363853914,1748899844057,-500.0,0.00031705,7]
[363853916,1748899844066,-1253.0,0.0003173,2]
[363853918,1748899844077,-4001.04367643,0.00031797,25]
[363853920,1748899844086,-500.0,0.000318,5]
[363853922,1748899844096,-152.92,0.000319,31]
[363853925,1748899844106,-152.92,0.000319,31]
[363853927,1748899844115,-152.92,0.000319,31]
[363853929,1748899844125,-152.92,0.000319,31]
[363853931,1748899844134,-152.92,0.000319,31]
[363853932,1748899844143,-152.92,0.000319,31]
[363853934,1748899844152,-152.92,0.000319,31]
[363853936,1748899844163,-152.92,0.000319,31]
[363853939,1748899844172,-152.92,0.000319,31]
[363853940,1748899844182,-152.92,0.000319,31]
[363853943,1748899844195,-152.92,0.000319,31]
[363853945,1748899844206,-152.92,0.000319,31]
[363853947,1748899844215,-49690.80212842,0.000319,7]
[363853949,1748899844227,-15490.0000005,0.000319,7]
[363853952,1748899844243,-302.0,0.000319,7]
[363853954,1748899844255,-18444.84787108,0.000319,7]
[363853956,1748899844265,-150.0,0.00031958,2]
[363853958,1748899844274,-1000.0,0.00032,2]
[363853960,1748899844284,-375.0,0.000322,2]
[363853962,1748899844295,-259.53427492,0.000324,60]
[363853964,1748899844304,-259.53427492,0.000324,60]
[363853966,1748899844314,-259.53427492,0.000324,60]
[363853968,1748899844323,-259.53427492,0.000324,60]
[363853970,1748899844333,-259.53427492,0.000324,60]
[363853972,1748899844343,-22601.80443427,0.00032524,2]
[363853974,1748899844354,-577.13,0.00032524,2]
[363853977,1748899844370,-541.39516573,0.00032524,2]
[363853979,1748899844379,-4001.04367643,0.0003259,27]
[363853981,1748899844389,-150.0,0.00032729,2]
[363853983,1748899844399,-222.33204186,0.00032795,33]
[363853985,1748899844411,-1756.83995814,0.00032795,33]
[363853987,1748899844420,-173.229,0.00032795,33]
[363853989,1748899844430,-465.15369363,0.00032876,2]
[363853991,1748899844442,-431.6244035,0.00032876,2]
[363853993,1748899844452,-425.44063379,0.00032876,2]
[363853995,1748899844461,-500.0,0.00032876,2]
[363853997,1748899844471,-639.54610809,0.00032876,2]
[363853999,1748899844480,-500.0,0.00032876,2]
[363854001,1748899844490,-4000.0,0.00032877,30]
[363854003,1748899844499,-500.0,0.00032877,2]
[363854005,1748899844509,-6414.75,0.000329,14]
[363854007,1748899844518,-500.0,0.00032925,7]
[363854009,1748899844528,-500.0,0.00033036,7]
[363854011,1748899844538,-500.0,0.00033131,7]
[363854013,1748899844547,-150.36902539,0.00033255,2]
[363854015,1748899844556,-4001.04367643,0.00033383,28]
[363854017,1748899844567,-500.0,0.0003339,7]
[363854019,1748899844577,-500.0,0.00033433,7]
[363854021,1748899844587,-153.0,0.00033491,2]
[363854023,1748899844596,-153.0,0.00033491,2]
[363854025,1748899844605,-153.0,0.00033491,2]
[363854027,1748899844615,-153.0,0.00033491,2]
[363854029,1748899844624,-164.62,0.00033491,2]
[363854031,1748899844634,-152.92,0.000335,31]
[363854033,1748899844644,-152.92,0.000335,31]
[363854035,1748899844654,-152.92,0.000335,31]
[363854037,1748899844664,-152.92,0.000335,31]
[363854039,1748899844673,-152.92,0.000335,31]
[363854041,1748899844683,-152.92,0.000335,31]
[363854043,1748899844693,-150.0,0.000335,2]
[363854045,1748899844702,-150.0,0.00033507,2]
[363854047,1748899844712,-500.0,0.00033507,2]
[363854049,1748899844721,-500.0,0.00033507,2]
[363854051,1748899844730,-500.0,0.00033507,2]
[363854053,1748899844740,-150.0,0.00033534,2]
[363854055,1748899844750,-500.0,0.00033534,2]
[363854057,1748899844764,-500.0,0.00033534,2]
[363854060,1748899844773,-500.0,0.00033534,2]
[363854062,1748899844783,-1000.0,0.00033556,2]
[363854063,1748899844793,-150.0,0.00033562,2]
[363854065,1748899844802,-500.0,0.00033562,2]
[363854067,1748899844812,-500.0,0.00033562,2]
[363854068,1748899844822,-500.0,0.00033562,2]
[363854069,1748899844832,-150.0,0.00033589,2]
[363854071,1748899844841,-419.40836294,0.00033589,2]
[363854073,1748899844850,-500.0,0.00033589,2]
[363854074,1748899844860,-500.0,0.00033589,2]
[363854076,1748899844869,-150.0,0.00033617,2]
[363854078,1748899844878,-156.23010618,0.00033617,2]
[363854081,1748899844888,-500.0,0.00033617,2]
[363854083,1748899844898,-150.0,0.00033644,2]
[363854085,1748899844908,-500.0,0.00033644,2]
[363854087,1748899844917,-150.0,0.00033671,2]
[363854089,1748899844926,-500.0,0.00033671,2]
[363854091,1748899844936,-150.0,0.00033699,2]
[363854093,1748899844946,-500.0,0.00033699,2]
[363854095,1748899844955,-150.0,0.00033726,2]
[363854097,1748899844965,-500.0,0.00033726,2]
[363854099,1748899844975,-383.0,0.0003375,5]
[363854101,1748899844985,-150.0,0.00033754,2]
[363854103,1748899844996,-500.0,0.00033754,2]
[363854105,1748899845007,-150.0,0.00033781,2]
[363854107,1748899845017,-500.0,0.00033781,2]
[363854109,1748899845027,-459.54,0.00033787,2]
[363854111,1748899845036,-2289.72385922,0.000338,14]
[363854198,1748899845892,-215.0,0.0003,2]
[363854200,1748899845902,-2143.4987701,0.000338,14]
[363854203,1748899845922,-277.97063424,0.000338,14]
[363854205,1748899845934,-1703.55673644,0.000338,14]
[363854207,1748899845944,-300.0,0.00033808,2]
[363854209,1748899845953,-150.0,0.00033808,2]
[363854211,1748899845962,-500.0,0.00033808,2]
[363854213,1748899845973,-150.0,0.00033836,2]
[363854215,1748899845985,-384.51956225,0.00033836,2]
[363854217,1748899845996,-150.0,0.00033863,2]
[363854219,1748899846008,-500.0,0.00033885,7]
[363854221,1748899846019,-150.0,0.00033891,2]
[363854223,1748899846029,-500.0,0.00033901,7]
[363854225,1748899846039,-230.31232275,0.00033918,2]
[363854227,1748899846048,-58386.37853445,0.00034,14]
[363854229,1748899846064,-23557.72170355,0.00034,14]
[363854232,1748899846076,-1983.549762,0.00034,14]
[363854234,1748899846087,-137.2675872,0.00034099,7]
[363854236,1748899846099,-362.7324128,0.00034099,7]
[363854238,1748899846109,-1068.5180987,0.00034176,30]
[363854240,1748899846121,-502.23000018,0.00034176,30]
[363854242,1748899846133,-499.3634717,0.00034176,30]
[363854245,1748899846144,-1930.93210585,0.00034176,30]
[363854247,1748899846154,-200.0,0.00034195,120]
[363854249,1748899846164,-11.36010497,0.00034271,2]
[363854251,1748899846181,-138.63989503,0.00034271,2]
[363854253,1748899846191,-152.0,0.00034828,3]
[363854255,1748899846201,-4001.04367643,0.00034969,31]
[363854257,1748899846210,-1000.0,0.00035,2]
[363854259,1748899846220,-6414.75,0.00035,14]
[363854261,1748899846230,-5806.9879604,0.00035,15]
[363854264,1748899846239,-416.80831882,0.00035,30]
[363854266,1748899846249,-10138.28368925,0.00035,3]
[363854268,1748899846259,-500.0,0.00035037,7]
[363854270,1748899846269,-150.0,0.00035043,2]
[363854272,1748899846279,-855.85,0.00035068,2]
[363854274,1748899846289,-500.0,0.00035138,7]
[363854276,1748899846299,-500.0,0.00035185,7]
[363854278,1748899846309,-500.0,0.0003527,7]
[363854280,1748899846318,-2000.0,0.000353,2]
[363854282,1748899846328,-259.02752723,0.00035354,7]
[363854284,1748899846342,-1901.87,0.000356,7]
[363854286,1748899846352,-500.0,0.00035761,7]
[363854288,1748899846362,-4001.04367643,0.00035762,33]
[363854290,1748899846374,-150.0,0.00035814,2]
[363854292,1748899846385,-202.0,0.00035835,2]
[363854294,1748899846395,-6414.75,0.000359,14]
[363854296,1748899846405,-500.0,0.0003591,7]
[363854298,1748899846415,-500.0,0.0003597,60]
[363854300,1748899846426,-510.41028548,0.0003597,60]
[363854303,1748899846436,-459.54,0.00036051,2]
[363854305,1748899846447,-500.0,0.00036404,7]
[363854307,1748899846457,-4001.04367643,0.00036555,35]
[363854309,1748899846467,-150.36902539,0.00036578,2]
[363854311,1748899846477,-150.0,0.00036585,2]
[363854313,1748899846487,-368.45275665,0.00036616,5]
[363854315,1748899846497,-500.0,0.00036846,7]
[363854317,1748899846507,-66740.86728095,0.000369,14]
[363854319,1748899846521,-17186.78271905,0.000369,14]
[363854321,1748899846531,-500.0,0.00036986,2]
[363854323,1748899846541,-500.0,0.00037066,60]
[363854325,1748899846551,-1000.0,0.00037284,2]
[363854327,1748899846561,-4001.04367643,0.00037348,36]
[363854329,1748899846572,-150.0,0.00037356,2]
[363854331,1748899846582,-500.0,0.00037729,7]
[363854333,1748899846592,-500.0,0.00037747,7]
[363854335,1748899846601,-500.0,0.00037756,7]
[363854337,1748899846615,-500.0,0.00037769,7]
[363854340,1748899846625,-500.0,0.0003789,7]
[363854342,1748899846636,-16000.0,0.00037993,2]
[363854344,1748899846646,-1533.8265915,0.00038,2]
[363854346,1748899846656,-202.0,0.00038032,7]
[363854348,1748899846666,-2000.0,0.000381,2]
[363854350,1748899846676,-150.0,0.00038128,2]
[363854352,1748899846685,-4001.04367643,0.00038141,38]
[363854354,1748899846695,-878.26,0.00038153,2]
[363854356,1748899846704,-500.0,0.00038162,60]
[363854358,1748899846714,-796.06132542,0.00038172,7]
[363854360,1748899846724,-459.54,0.00038315,2]
[363854362,1748899846734,-171.85258788,0.00038356,2]
[363854364,1748899846746,-152.63854525,0.00038386,30]
[363854366,1748899846757,-202.0,0.0003873,2]
[363854368,1748899846768,-150.0,0.00038899,2]
[363854370,1748899846778,-320.0,0.000389,2]
[363854372,1748899846789,-1200.0,0.000389,2]
[363854374,1748899846799,-526.14002052,0.000389,2]
[363854376,1748899846809,-4001.04367643,0.00038934,39]
[363854378,1748899846819,-5377.5059305,0.00038954,11]
[363854380,1748899846828,-1000.80012234,0.00038998,120]
[363854382,1748899846838,-500.0,0.00039156,7]
[363854384,1748899846848,-600.0,0.00039258,60]
[363854386,1748899846858,-150.0,0.00039325,2]
[363854388,1748899846868,-150.0,0.00039339,2]
[363854390,1748899846878,-150.0,0.00039377,2]
[363854392,1748899846888,-150.0,0.00039391,2]
[363854394,1748899846897,-150.0,0.00039393,2]
[363854396,1748899846907,-150.0,0.00039395,2]
[363854398,1748899846916,-83927.65,0.000394,14]
[363854400,1748899846927,-150.0,0.00039408,2]
[363854402,1748899846937,-150.0,0.00039409,2]
[363854404,1748899846947,-1804.25173,0.0003941,2]
[363854407,1748899846957,-150.0,0.00039431,2]
[363854408,1748899846967,-150.0,0.00039446,2]
[363854411,1748899846977,-150.0,0.00039449,2]
[363854412,1748899846987,-150.0,0.00039477,2]
[363854415,1748899846999,-150.0,0.0003948,2]
[363854417,1748899847009,-150.0,0.00039482,2]
[363854419,1748899847019,-150.0,0.00039516,2]
[363854421,1748899847029,-150.0,0.00039521,2]
[363854423,1748899847038,-150.0,0.00039531,2]
[363854425,1748899847048,-150.0,0.00039534,2]
[363854427,1748899847059,-773.05822125,0.00039537,7]
[363854428,1748899847069,-150.0,0.0003954,2]
[363854431,1748899847079,-150.0,0.00039544,2]
[363854433,1748899847089,-150.0,0.00039563,2]
[363854435,1748899847098,-150.0,0.00039567,2]
[363854437,1748899847108,-150.0,0.00039571,2]
[363854439,1748899847118,-150.0,0.00039579,2]
[363854440,1748899847128,-150.0,0.0003958,2]
[363854442,1748899847138,-150.0,0.00039594,2]
[363854444,1748899847147,-2110.0,0.00039596,2]
[363854446,1748899847157,-150.0,0.00039638,2]
[363854448,1748899847167,-849.16559699,0.00039641,2]
[363854450,1748899847177,-34588.4392,0.00039662,2]
[363854452,1748899847187,-150.0,0.0003967,2]
[363854454,1748899847197,-150.0,0.0003967,2]
[363854456,1748899847207,-150.0,0.00039679,2]
[363854458,1748899847216,-1000.0,0.000397,7]
[363854460,1748899847226,-150.0,0.00039716,2]
[363854462,1748899847235,-150.0,0.00039716,2]
[363854464,1748899847245,-150.0,0.00039726,2]
[363854466,1748899847255,-4001.04367643,0.00039728,41]
[363854468,1748899847265,-150.0,0.00039732,2]
[363854470,1748899847275,-150.0,0.00039734,2]
[363854472,1748899847284,-150.0,0.00039739,2]
[363854474,1748899847294,-150.0,0.00039743,2]
[363854476,1748899847303,-150.0,0.00039748,2]
[363854478,1748899847313,-150.0,0.00039748,2]
[363854479,1748899847323,-150.0,0.00039749,2]
[363854481,1748899847332,-164.72008625,0.00039754,4]
[363854483,1748899847342,-150.0,0.00039764,2]
[363854485,1748899847352,-150.0,0.00039767,2]
[363854486,1748899847361,-150.0,0.00039773,2]
[363854488,1748899847371,-150.0,0.00039774,2]
[363854490,1748899847381,-150.0,0.00039774,2]
[363854492,1748899847390,-150.0,0.00039778,2]
[363854493,1748899847399,-150.0,0.00039779,2]
[363854495,1748899847410,-150.0,0.00039783,2]
[363854496,1748899847420,-150.0,0.00039789,2]
[363854497,1748899847430,-943.1262556,0.00039791,2]
[363854498,1748899847440,-855.6169453,0.00039792,2]
[363854499,1748899847449,-899.3716004,0.00039792,2]
[363854500,1748899847459,-811.8622901,0.00039794,2]
[363854501,1748899847469,-150.0,0.00039797,2]
[363854502,1748899847479,-724.3529799,0.00039797,2]
[363854503,1748899847488,-768.107635,0.00039797,2]
[363854504,1748899847499,-150.0,0.00039798,2]
[363854505,1748899847509,-150.0,0.000398,2]
[363854506,1748899847519,-303.0,0.000398,2]
[363854507,1748899847528,-210.0,0.000398,30]
[363854508,1748899847540,-202.0,0.000398,2]
[363854509,1748899847549,-210.0,0.000398,30]
[363854510,1748899847560,-159.0,0.000398,41]
[363854512,1748899847570,-150.0,0.00039801,2]
[363854514,1748899847580,-1000.0,0.00039805,2]
[363854516,1748899847590,-1000.0,0.00039805,2]
[363854529,1748899847849,-200.0,0.00039806,2]
[363854531,1748899847860,-173.0,0.00039806,3]
[363854533,1748899847870,-190.71386959,0.00039806,3]
[363854535,1748899847879,-150.0,0.00039806,120]
[363854536,1748899847889,-500.0,0.00039806,30]
[363854538,1748899847899,-150.0,0.00039807,2]
[363854541,1748899847909,-150.0,0.00039807,2]
[363854542,1748899847918,-150.0,0.00039808,2]
[363854544,1748899847927,-150.0,0.00039808,2]
[363854545,1748899847937,-150.0,0.00039817,2]
[363854546,1748899847947,-150.0,0.00039818,2]
[363854547,1748899847957,-150.0,0.00039819,2]
[363854548,1748899847968,-150.0,0.00039821,2]
[363854549,1748899847977,-150.0,0.00039824,2]
[363854550,1748899847987,-150.0,0.00039826,2]
[363854551,1748899848001,-150.0,0.00039827,2]
[363854552,1748899848011,-150.0,0.00039842,2]
[363854553,1748899848021,-150.0,0.00039845,2]
[363854554,1748899848031,-743.8673,0.0003985,10]
[363854555,1748899848042,-150.0,0.0003985,2]
[363854556,1748899848053,-150.0,0.00039857,2]
[363854557,1748899848063,-150.0,0.00039859,2]
[363854558,1748899848075,-150.0,0.0003987,2]
[363854559,1748899848085,-150.0,0.00039872,2]
[363854560,1748899848095,-150.0,0.00039873,2]
[363854561,1748899848105,-150.0,0.00039878,2]
[363854562,1748899848115,-150.0,0.0003988,2]
[363854563,1748899848125,-150.0,0.00039882,2]
[363854564,1748899848135,-662.8152,0.00039888,30]
[363854565,1748899848144,-153.25102216,0.000399,30]
[363854566,1748899848154,-5000.0,0.000399,30]
[363854567,1748899848163,-245.35334029,0.000399,120]
[363854568,1748899848173,-3227.0,0.000399,120]
[363854569,1748899848184,-150.0,0.000399,2]